[Event "Titled Tuesday Blitz August 08 Early 2023"]
[White "Koutlas, Nikolaos"]
[Black "Indjic, Aleksandar"]
[WhiteFideId "25827138"]
[BlackFideId "911925"]
[WhiteElo "2495"]
[BlackElo "2938"]
[Result "0-1"]
[Round "1"]
[TimeControl "180+1"]
[Date "2023.08.08"]
[WhiteClock "0:00:09"]
[BlackClock "0:01:30"]
[Board "31"]

1. c4 {[%clk 0:02:59]}  e5 {[%clk 0:02:59]} 2. Nc3 {[%clk 0:02:57]}  Bb4 {[%clk 0:02:59]} 3. Qc2 {[%clk 0:02:54]}  Nf6 {[%clk 0:02:58]} 4. g3 {[%clk 0:02:53]}  c6 {[%clk 0:02:56]} 5. Nf3 {[%clk 0:02:51]}  Qe7 {[%clk 0:02:54]} 6. Bg2 {[%clk 0:02:49]}  O-O {[%clk 0:02:53]} 7. e4 {[%clk 0:02:28]}  d6 {[%clk 0:02:44]} 8. O-O {[%clk 0:02:26]}  Bg4 {[%clk 0:02:44]} 9. h3 {[%clk 0:02:17]}  Bxf3 {[%clk 0:02:44]} 10. Bxf3 {[%clk 0:02:17]}  Bc5 {[%clk 0:02:44]} 11. d3 {[%clk 0:02:16]}  a6 {[%clk 0:02:41]} 12. a4 {[%clk 0:02:13]}  a5 {[%clk 0:02:40]} 13. Bg2 {[%clk 0:02:05]}  Na6 {[%clk 0:02:39]} 14. Qe2 {[%clk 0:02:06]}  Ne8 {[%clk 0:02:33]} 15. Kh2 {[%clk 0:02:05]}  Nec7 {[%clk 0:02:33]} 16. f4 {[%clk 0:02:04]}  Ne6 {[%clk 0:02:33]} 17. f5 {[%clk 0:02:03]}  Nd4 {[%clk 0:02:32]} 18. f6 {[%clk 0:01:58]}  Qxf6 {[%clk 0:02:32]} 19. Qd1 {[%clk 0:01:45]}  Qe7 {[%clk 0:02:30]} 20. Qh5 {[%clk 0:01:43]}  g6 {[%clk 0:02:29]} 21. Qh6 {[%clk 0:01:42]}  f5 {[%clk 0:02:29]} 22. exf5 {[%clk 0:01:40]}  gxf5 {[%clk 0:02:28]} 23. Bg5 {[%clk 0:01:32]}  Qg7 {[%clk 0:02:23]} 24. Qh4 {[%clk 0:01:32]}  Qg6 {[%clk 0:02:13]} 25. Rae1 {[%clk 0:01:24]}  Kg7 {[%clk 0:02:10]} 26. Ne4 {[%clk 0:01:11]}  Rf7 {[%clk 0:02:01]} 27. g4 {[%clk 0:00:57]}  f4 {[%clk 0:01:59]} 28. Nc3 {[%clk 0:00:43]}  f3 {[%clk 0:01:53]} 29. Ne4 {[%clk 0:00:28]}  Raf8 {[%clk 0:01:51]} 30. Bh1 {[%clk 0:00:26]}  Bb4 {[%clk 0:01:40]} 31. Re3 {[%clk 0:00:24]}  h6 {[%clk 0:01:38]} 32. Be7 {[%clk 0:00:16]}  Re8 {[%clk 0:01:38]} 33. Bf6+ {[%clk 0:00:16]}  Rxf6 {[%clk 0:01:38]} 34. Nxf6 {[%clk 0:00:16]}  Qxf6 {[%clk 0:01:38]} 35. Qxf6+ {[%clk 0:00:14]}  Kxf6 {[%clk 0:01:39]} 36. Bxf3 {[%clk 0:00:15]}  Ke7 {[%clk 0:01:34]} 37. Be4 {[%clk 0:00:13]}  Bd2 {[%clk 0:01:33]} 38. Rg3 {[%clk 0:00:11]}  Bf4 {[%clk 0:01:31]} 39. h4 {[%clk 0:00:12]}  Nc5 {[%clk 0:01:30]} 40. g5 {[%clk 0:00:11]}  Nxe4 {[%clk 0:01:30]} 41. dxe4 {[%clk 0:00:11]}  hxg5 {[%clk 0:01:31]} 42. hxg5 {[%clk 0:00:11]}  Ne6 {[%clk 0:01:31]} 43. g6 {[%clk 0:00:11]}  Rg8 {[%clk 0:01:31]} 44. Rxf4 {[%clk 0:00:09]}  exf4 {[%clk 0:01:30]} 0-1


[Site "https://www.chess.com"]

[Event "Titled Tuesday Blitz August 08 Early 2023"]
[White "Kovalev, Vladislav"]
[Black "Hnydiuk, Aleksander"]
[WhiteFideId "13504398"]
[BlackFideId "1109057"]
[WhiteElo "2935"]
[BlackElo "2494"]
[Result "1/2-1/2"]
[Round "1"]
[TimeControl "180+1"]
[Date "2023.08.08"]
[WhiteClock "0:00:09"]
[BlackClock "0:00:04"]
[Board "32"]

1. e4 {[%clk 0:02:59]}  e5 {[%clk 0:02:48]} 2. Nf3 {[%clk 0:02:59]}  Nc6 {[%clk 0:02:47]} 3. Bb5 {[%clk 0:02:59]}  a6 {[%clk 0:02:47]} 4. Ba4 {[%clk 0:02:59]}  Nf6 {[%clk 0:02:48]} 5. O-O {[%clk 0:03:00]}  Be7 {[%clk 0:02:48]} 6. d3 {[%clk 0:03:00]}  b5 {[%clk 0:02:42]} 7. Bb3 {[%clk 0:03:00]}  O-O {[%clk 0:02:42]} 8. Nc3 {[%clk 0:02:55]}  d6 {[%clk 0:02:41]} 9. a3 {[%clk 0:02:52]}  Be6 {[%clk 0:02:39]} 10. Nd5 {[%clk 0:02:49]}  h6 {[%clk 0:02:20]} 11. Bd2 {[%clk 0:02:42]}  Re8 {[%clk 0:02:16]} 12. a4 {[%clk 0:02:39]}  Rb8 {[%clk 0:01:45]} 13. axb5 {[%clk 0:02:38]}  axb5 {[%clk 0:01:46]} 14. Ra6 {[%clk 0:02:31]}  Qd7 {[%clk 0:01:46]} 15. Qe2 {[%clk 0:02:24]}  Bg4 {[%clk 0:01:31]} 16. c3 {[%clk 0:02:22]}  Nxd5 {[%clk 0:01:25]} 17. Bxd5 {[%clk 0:02:20]}  Nd8 {[%clk 0:01:24]} 18. h3 {[%clk 0:02:20]}  Be6 {[%clk 0:01:19]} 19. Rfa1 {[%clk 0:01:55]}  c6 {[%clk 0:00:55]} 20. Bxe6 {[%clk 0:01:52]}  Nxe6 {[%clk 0:00:56]} 21. Be3 {[%clk 0:01:51]}  Bf8 {[%clk 0:00:39]} 22. b4 {[%clk 0:01:48]}  Rb7 {[%clk 0:00:35]} 23. Qa2 {[%clk 0:01:39]}  g6 {[%clk 0:00:33]} 24. Ra7 {[%clk 0:01:18]}  Bg7 {[%clk 0:00:25]} 25. Rxb7 {[%clk 0:01:18]}  Qxb7 {[%clk 0:00:26]} 26. Qa7 {[%clk 0:01:18]}  Qxa7 {[%clk 0:00:18]} 27. Rxa7 {[%clk 0:01:19]}  Rc8 {[%clk 0:00:15]} 28. Nd2 {[%clk 0:01:17]}  f5 {[%clk 0:00:11]} 29. f3 {[%clk 0:01:16]}  h5 {[%clk 0:00:09]} 30. Nb3 {[%clk 0:01:16]}  Bf6 {[%clk 0:00:05]} 31. Ra6 {[%clk 0:00:51]}  Bg5 {[%clk 0:00:04]} 32. Bxg5 {[%clk 0:00:40]}  Nxg5 {[%clk 0:00:04]} 33. Na5 {[%clk 0:00:41]}  c5 {[%clk 0:00:03]} 34. Rxd6 {[%clk 0:00:41]}  cxb4 {[%clk 0:00:03]} 35. cxb4 {[%clk 0:00:41]}  Rc1+ {[%clk 0:00:03]} 36. Kf2 {[%clk 0:00:41]}  Rc2+ {[%clk 0:00:03]} 37. Kf1 {[%clk 0:00:39]}  Rc1+ {[%clk 0:00:03]} 38. Ke2 {[%clk 0:00:40]}  Rc2+ {[%clk 0:00:04]} 39. Kd1 {[%clk 0:00:38]}  Rxg2 {[%clk 0:00:04]} 40. Rxg6+ {[%clk 0:00:39]}  Kf7 {[%clk 0:00:03]} 41. exf5 {[%clk 0:00:40]}  Rg1+ {[%clk 0:00:02]} 42. Ke2 {[%clk 0:00:38]}  Nxh3 {[%clk 0:00:03]} 43. Rxg1 {[%clk 0:00:21]}  Nxg1+ {[%clk 0:00:04]} 44. Kf2 {[%clk 0:00:22]}  Nh3+ {[%clk 0:00:04]} 45. Kg3 {[%clk 0:00:22]}  Nf4 {[%clk 0:00:05]} 46. d4 {[%clk 0:00:15]}  Ne2+ {[%clk 0:00:05]} 47. Kh4 {[%clk 0:00:13]}  Nxd4 {[%clk 0:00:05]} 48. Kxh5 {[%clk 0:00:14]}  Nxf5 {[%clk 0:00:05]} 49. Kg5 {[%clk 0:00:14]}  Nd4 {[%clk 0:00:05]} 50. Kg4 {[%clk 0:00:12]}  Ke6 {[%clk 0:00:06]} 51. Nb7 {[%clk 0:00:12]}  Kd5 {[%clk 0:00:06]} 52. Na5 {[%clk 0:00:06]}  Nc2 {[%clk 0:00:05]} 53. Kf5 {[%clk 0:00:06]}  Nxb4 {[%clk 0:00:05]} 54. Nb3 {[%clk 0:00:07]}  Nc2 {[%clk 0:00:04]} 55. Nd2 {[%clk 0:00:07]}  Nd4+ {[%clk 0:00:03]} 56. Kg4 {[%clk 0:00:08]}  b4 {[%clk 0:00:04]} 57. f4 {[%clk 0:00:08]}  exf4 {[%clk 0:00:03]} 58. Kxf4 {[%clk 0:00:09]}  b3 {[%clk 0:00:04]} 59. Nxb3 {[%clk 0:00:09]} 1/2-1/2


[Site "https://www.chess.com"]

[Event "Titled Tuesday Blitz August 08 Early 2023"]
[White "Shimanov, Aleksandr"]
[Black "Liu, Casper"]
[WhiteFideId "4198603"]
[BlackFideId "1454153"]
[WhiteElo "2933"]
[BlackElo "2494"]
[Result "1-0"]
[Round "1"]
[TimeControl "180+1"]
[Date "2023.08.08"]
[WhiteClock "0:01:30"]
[BlackClock "0:00:10"]
[Board "34"]

1. e4 {[%clk 0:02:56]}  c5 {[%clk 0:03:00]} 2. f4 {[%clk 0:02:55]}  g6 {[%clk 0:02:56]} 3. Nf3 {[%clk 0:02:55]}  Bg7 {[%clk 0:02:57]} 4. c3 {[%clk 0:02:52]}  d5 {[%clk 0:02:55]} 5. e5 {[%clk 0:02:47]}  Bg4 {[%clk 0:02:54]} 6. h3 {[%clk 0:02:46]}  Bxf3 {[%clk 0:02:54]} 7. Qxf3 {[%clk 0:02:47]}  e6 {[%clk 0:02:54]} 8. Bb5+ {[%clk 0:02:44]}  Nc6 {[%clk 0:02:54]} 9. Bxc6+ {[%clk 0:02:44]}  bxc6 {[%clk 0:02:54]} 10. d3 {[%clk 0:02:43]}  h5 {[%clk 0:02:51]} 11. O-O {[%clk 0:02:42]}  Nh6 {[%clk 0:02:46]} 12. Be3 {[%clk 0:02:40]}  Rb8 {[%clk 0:02:17]} 13. b3 {[%clk 0:02:34]}  Qa5 {[%clk 0:02:05]} 14. Qf2 {[%clk 0:02:26]}  Bf8 {[%clk 0:01:27]} 15. c4 {[%clk 0:02:18]}  Nf5 {[%clk 0:01:16]} 16. Bd2 {[%clk 0:02:18]}  Qd8 {[%clk 0:01:14]} 17. Nc3 {[%clk 0:02:16]}  Be7 {[%clk 0:00:48]} 18. g3 {[%clk 0:02:08]}  g5 {[%clk 0:00:35]} 19. fxg5 {[%clk 0:01:36]}  Bxg5 {[%clk 0:00:34]} 20. Kh2 {[%clk 0:01:36]}  Rg8 {[%clk 0:00:26]} 21. Rg1 {[%clk 0:01:35]}  Kd7 {[%clk 0:00:12]} 22. Na4 {[%clk 0:01:33]}  Qe7 {[%clk 0:00:11]} 23. Nxc5+ {[%clk 0:01:31]}  Qxc5 {[%clk 0:00:10]} 24. Qxc5 {[%clk 0:01:30]} 1-0


[Site "https://www.chess.com"]

[Event "Titled Tuesday Blitz August 08 Early 2023"]
[White "Khandelwal, Ankush"]
[Black "Sjugirov, Sanan"]
[WhiteFideId "413470"]
[BlackFideId "4189302"]
[WhiteElo "2494"]
[BlackElo "2925"]
[Result "1/2-1/2"]
[Round "1"]
[TimeControl "180+1"]
[Date "2023.08.08"]
[WhiteClock "0:00:09"]
[BlackClock "0:01:17"]
[Board "35"]

1. e3 {[%clk 0:02:59]}  Nf6 {[%clk 0:02:59]} 2. Nf3 {[%clk 0:02:54]}  d5 {[%clk 0:02:59]} 3. c4 {[%clk 0:02:52]}  e6 {[%clk 0:02:59]} 4. b3 {[%clk 0:02:51]}  b6 {[%clk 0:02:59]} 5. Bb2 {[%clk 0:02:47]}  Bb7 {[%clk 0:02:59]} 6. Nc3 {[%clk 0:02:46]}  a6 {[%clk 0:02:58]} 7. g3 {[%clk 0:02:36]}  dxc4 {[%clk 0:02:54]} 8. bxc4 {[%clk 0:02:36]}  Nbd7 {[%clk 0:02:54]} 9. Bg2 {[%clk 0:02:30]}  Bd6 {[%clk 0:02:54]} 10. O-O {[%clk 0:02:25]}  O-O {[%clk 0:02:55]} 11. d4 {[%clk 0:02:23]}  e5 {[%clk 0:02:50]} 12. dxe5 {[%clk 0:02:11]}  Nxe5 {[%clk 0:02:35]} 13. Nxe5 {[%clk 0:02:10]}  Bxg2 {[%clk 0:02:35]} 14. Nxf7 {[%clk 0:02:08]}  Rxf7 {[%clk 0:02:30]} 15. Kxg2 {[%clk 0:02:08]}  Qe8 {[%clk 0:02:31]} 16. Qf3 {[%clk 0:01:55]}  Be5 {[%clk 0:02:26]} 17. Rac1 {[%clk 0:01:43]}  b5 {[%clk 0:02:15]} 18. Nd1 {[%clk 0:01:24]}  Rd8 {[%clk 0:02:07]} 19. Bxe5 {[%clk 0:01:06]}  Qxe5 {[%clk 0:02:07]} 20. cxb5 {[%clk 0:01:04]}  axb5 {[%clk 0:02:07]} 21. Nc3 {[%clk 0:00:55]}  Rd2 {[%clk 0:01:57]} 22. Rfd1 {[%clk 0:00:53]}  Rxd1 {[%clk 0:01:55]} 23. Qxd1 {[%clk 0:00:50]}  b4 {[%clk 0:01:54]} 24. Ne2 {[%clk 0:00:44]}  Qe4+ {[%clk 0:01:49]} 25. Kg1 {[%clk 0:00:41]}  Ng4 {[%clk 0:01:48]} 26. Nf4 {[%clk 0:00:35]}  Ne5 {[%clk 0:01:48]} 27. Qd8+ {[%clk 0:00:32]}  Rf8 {[%clk 0:01:47]} 28. Qd5+ {[%clk 0:00:32]}  Qxd5 {[%clk 0:01:17]} 29. Nxd5 {[%clk 0:00:33]}  Rxf2 {[%clk 0:01:18]} 30. Kxf2 {[%clk 0:00:10]}  Nd3+ {[%clk 0:01:18]} 31. Kf3 {[%clk 0:00:08]}  Nxc1 {[%clk 0:01:19]} 32. Nxb4 {[%clk 0:00:09]}  c5 {[%clk 0:01:19]} 33. Na6 {[%clk 0:00:09]}  Nxa2 {[%clk 0:01:11]} 34. Nxc5 {[%clk 0:00:09]}  Nb4 {[%clk 0:01:12]} 35. Kf4 {[%clk 0:00:07]}  Kf7 {[%clk 0:01:12]} 36. Ne4 {[%clk 0:00:07]}  Nd5+ {[%clk 0:01:12]} 37. Kf3 {[%clk 0:00:07]}  h6 {[%clk 0:01:12]} 38. Nd6+ {[%clk 0:00:07]}  Ke6 {[%clk 0:01:13]} 39. Ne4 {[%clk 0:00:08]}  Ke5 {[%clk 0:01:13]} 40. Nf2 {[%clk 0:00:08]}  Ne7 {[%clk 0:01:13]} 41. Ng4+ {[%clk 0:00:08]}  Ke6 {[%clk 0:01:14]} 42. Nf2 {[%clk 0:00:09]}  Nc6 {[%clk 0:01:14]} 43. Nd3 {[%clk 0:00:10]}  Ne7 {[%clk 0:01:14]} 44. Nf4+ {[%clk 0:00:09]}  Kf5 {[%clk 0:01:15]} 45. Nh5 {[%clk 0:00:09]}  Kg6 {[%clk 0:01:15]} 46. Nf4+ {[%clk 0:00:10]}  Kf5 {[%clk 0:01:15]} 47. Nh5 {[%clk 0:00:10]}  g6 {[%clk 0:01:15]} 48. Nf4 {[%clk 0:00:10]}  Nc6 {[%clk 0:01:15]} 49. e4+ {[%clk 0:00:10]}  Kf6 {[%clk 0:01:16]} 50. Ke3 {[%clk 0:00:10]}  Ne5 {[%clk 0:01:16]} 51. Nd5+ {[%clk 0:00:10]}  Ke6 {[%clk 0:01:16]} 52. Nf4+ {[%clk 0:00:10]}  Kf6 {[%clk 0:01:16]} 53. Nd5+ {[%clk 0:00:11]}  Ke6 {[%clk 0:01:17]} 54. Kf4 {[%clk 0:00:09]}  Nd3+ {[%clk 0:01:17]} 55. Ke3 {[%clk 0:00:09]}  Ne5 {[%clk 0:01:17]} 1/2-1/2


[Site "https://www.chess.com"]

[Event "Titled Tuesday Blitz August 08 Early 2023"]
[White "Zhigalko, Sergei"]
[Black "Perrine, Dalton"]
[WhiteFideId "13502956"]
[BlackFideId "2048434"]
[WhiteElo "2924"]
[BlackElo "2494"]
[Result "1-0"]
[Round "1"]
[TimeControl "180+1"]
[Date "2023.08.08"]
[WhiteClock "0:02:48"]
[BlackClock "0:00:00"]
[Board "36"]

1. e4 {[%clk 0:03:00]}  c5 {[%clk 0:03:00]} 2. Nf3 {[%clk 0:03:00]}  e6 {[%clk 0:02:58]} 3. c3 {[%clk 0:03:00]}  d5 {[%clk 0:02:58]} 4. e5 {[%clk 0:03:01]}  d4 {[%clk 0:02:58]} 5. Bd3 {[%clk 0:03:01]}  Bd7 {[%clk 0:02:21]} 6. O-O {[%clk 0:03:01]}  Bc6 {[%clk 0:02:21]} 7. Re1 {[%clk 0:03:01]}  g5 {[%clk 0:02:11]} 8. b4 {[%clk 0:03:01]}  g4 {[%clk 0:02:06]} 9. b5 {[%clk 0:03:01]}  Bd7 {[%clk 0:00:38]} 10. cxd4 {[%clk 0:03:00]}  gxf3 {[%clk 0:00:36]} 11. Qxf3 {[%clk 0:02:59]}  Qb6 {[%clk 0:00:27]} 12. Nc3 {[%clk 0:02:53]}  a6 {[%clk 0:00:08]} 13. Rb1 {[%clk 0:02:47]}  axb5 {[%clk 0:00:00]} 14. Nxb5 {[%clk 0:02:48]} 1-0


[Site "https://www.chess.com"]

[Event "Titled Tuesday Blitz August 08 Early 2023"]
[White "Zemlyanskii, Ivan"]
[Black "Nguyen Hong Nhung"]
[WhiteFideId "24249971"]
[BlackFideId "12412201"]
[WhiteElo "2915"]
[BlackElo "2492"]
[Result "1-0"]
[Round "1"]
[TimeControl "180+1"]
[Date "2023.08.08"]
[WhiteClock "0:00:26"]
[BlackClock "0:00:59"]
[Board "38"]

1. d4 {[%clk 0:02:58]}  f5 {[%clk 0:02:58]} 2. Qd3 {[%clk 0:02:57]}  d5 {[%clk 0:02:56]} 3. c4 {[%clk 0:02:57]}  c6 {[%clk 0:02:55]} 4. Nc3 {[%clk 0:02:56]}  Nf6 {[%clk 0:02:55]} 5. Bf4 {[%clk 0:02:56]}  e6 {[%clk 0:02:55]} 6. e3 {[%clk 0:02:56]}  Be7 {[%clk 0:02:50]} 7. Nf3 {[%clk 0:02:56]}  O-O {[%clk 0:02:50]} 8. Qc2 {[%clk 0:02:55]}  Nbd7 {[%clk 0:02:49]} 9. cxd5 {[%clk 0:02:52]}  exd5 {[%clk 0:02:46]} 10. Qxf5 {[%clk 0:02:30]}  Nc5 {[%clk 0:02:44]} 11. Qc2 {[%clk 0:02:28]}  Nce4 {[%clk 0:02:43]} 12. Bd3 {[%clk 0:02:29]}  Bg4 {[%clk 0:02:24]} 13. Ne5 {[%clk 0:02:28]}  Bf5 {[%clk 0:02:23]} 14. f3 {[%clk 0:02:27]}  Nxc3 {[%clk 0:02:23]} 15. Bxf5 {[%clk 0:02:25]}  Nb5 {[%clk 0:02:21]} 16. Be6+ {[%clk 0:02:23]}  Kh8 {[%clk 0:02:21]} 17. O-O {[%clk 0:02:05]}  Qe8 {[%clk 0:02:15]} 18. Bf5 {[%clk 0:01:54]}  Qh5 {[%clk 0:02:01]} 19. g4 {[%clk 0:01:50]}  Qh4 {[%clk 0:01:51]} 20. Qg2 {[%clk 0:01:26]}  Nh5 {[%clk 0:01:44]} 21. Bg3 {[%clk 0:01:18]}  Nxg3 {[%clk 0:01:41]} 22. hxg3 {[%clk 0:01:19]}  Qh6 {[%clk 0:01:40]} 23. Kf2 {[%clk 0:01:16]}  Nxd4 {[%clk 0:01:34]} 24. Rh1 {[%clk 0:01:00]}  Nxf5 {[%clk 0:01:26]} 25. Rxh6 {[%clk 0:00:43]}  Nxh6 {[%clk 0:01:27]} 26. Ke2 {[%clk 0:00:35]}  Bd6 {[%clk 0:01:22]} 27. Nd3 {[%clk 0:00:35]}  Rae8 {[%clk 0:01:19]} 28. Kd2 {[%clk 0:00:35]}  Bc7 {[%clk 0:01:15]} 29. Rh1 {[%clk 0:00:32]}  Bb6 {[%clk 0:01:13]} 30. Re1 {[%clk 0:00:33]}  Nf7 {[%clk 0:01:09]} 31. f4 {[%clk 0:00:30]}  Nd6 {[%clk 0:01:08]} 32. b3 {[%clk 0:00:30]}  Ne4+ {[%clk 0:01:07]} 33. Kc2 {[%clk 0:00:30]}  Re7 {[%clk 0:01:06]} 34. g5 {[%clk 0:00:29]}  Rfe8 {[%clk 0:01:05]} 35. Qh3 {[%clk 0:00:30]}  Nd6 {[%clk 0:01:01]} 36. Ne5 {[%clk 0:00:26]}  Kg8 {[%clk 0:00:59]} 37. Rh1 {[%clk 0:00:23]}  g6 {[%clk 0:00:58]} 38. Nxg6 {[%clk 0:00:24]}  hxg6 {[%clk 0:00:58]} 39. Qh8+ {[%clk 0:00:25]}  Kf7 {[%clk 0:00:59]} 40. Qf6+ {[%clk 0:00:26]}  Kg8 {[%clk 0:00:59]} 41. Rh8# {[%clk 0:00:26]} 1-0


[Site "https://www.chess.com"]

[Event "Titled Tuesday Blitz August 08 Early 2023"]
[White "Zakhartsov, Vladimir"]
[Black "Ljukin, Sergei"]
[WhiteFideId "4145097"]
[BlackFideId "14102200"]
[WhiteElo "2907"]
[BlackElo "2490"]
[Result "1-0"]
[Round "1"]
[TimeControl "180+1"]
[Date "2023.08.08"]
[WhiteClock "0:01:29"]
[BlackClock "0:01:04"]
[Board "40"]

1. e4 {[%clk 0:02:59]}  e6 {[%clk 0:03:00]} 2. d4 {[%clk 0:02:59]}  d5 {[%clk 0:03:00]} 3. Nd2 {[%clk 0:02:59]}  Nf6 {[%clk 0:03:00]} 4. Bd3 {[%clk 0:02:58]}  c5 {[%clk 0:02:57]} 5. e5 {[%clk 0:02:58]}  Nfd7 {[%clk 0:02:57]} 6. c3 {[%clk 0:02:58]}  Nc6 {[%clk 0:02:56]} 7. Ne2 {[%clk 0:02:58]}  cxd4 {[%clk 0:02:56]} 8. cxd4 {[%clk 0:02:58]}  f6 {[%clk 0:02:57]} 9. exf6 {[%clk 0:02:58]}  Qxf6 {[%clk 0:02:57]} 10. Nf3 {[%clk 0:02:57]}  h6 {[%clk 0:02:57]} 11. O-O {[%clk 0:02:57]}  Bd6 {[%clk 0:02:58]} 12. Ng3 {[%clk 0:02:53]}  O-O {[%clk 0:02:57]} 13. Bc2 {[%clk 0:02:52]}  Rd8 {[%clk 0:02:56]} 14. Re1 {[%clk 0:02:50]}  Qf7 {[%clk 0:02:38]} 15. Qd3 {[%clk 0:02:34]}  Nf8 {[%clk 0:02:38]} 16. a3 {[%clk 0:02:32]}  Bd7 {[%clk 0:02:38]} 17. Ne5 {[%clk 0:02:30]}  Nxe5 {[%clk 0:02:34]} 18. dxe5 {[%clk 0:02:31]}  Bc5 {[%clk 0:02:07]} 19. Be3 {[%clk 0:02:31]}  d4 {[%clk 0:01:59]} 20. Bd2 {[%clk 0:02:24]}  a6 {[%clk 0:01:58]} 21. Ne4 {[%clk 0:02:19]}  Bb5 {[%clk 0:01:52]} 22. Qg3 {[%clk 0:02:16]}  Be7 {[%clk 0:01:46]} 23. Bxh6 {[%clk 0:02:03]}  d3 {[%clk 0:01:37]} 24. Bb3 {[%clk 0:02:02]}  Bc6 {[%clk 0:01:29]} 25. Nd6 {[%clk 0:01:31]}  Bxd6 {[%clk 0:01:13]} 26. exd6 {[%clk 0:01:32]}  Bd5 {[%clk 0:01:13]} 27. Bxd5 {[%clk 0:01:30]}  exd5 {[%clk 0:01:04]} 28. Re7 {[%clk 0:01:29]} 1-0


[Site "https://www.chess.com"]

[Event "Titled Tuesday Blitz August 08 Early 2023"]
[White "Papayan, Oleg"]
[Black "Jones, Gawain C B"]
[WhiteFideId "4193911"]
[BlackFideId "409561"]
[WhiteElo "2488"]
[BlackElo "2899"]
[Result "0-1"]
[Round "1"]
[TimeControl "180+1"]
[Date "2023.08.08"]
[WhiteClock "0:00:05"]
[BlackClock "0:00:05"]
[Board "41"]

1. e4 {[%clk 0:03:00]}  e5 {[%clk 0:02:59]} 2. Nf3 {[%clk 0:03:00]}  Nc6 {[%clk 0:02:58]} 3. Bb5 {[%clk 0:03:01]}  a6 {[%clk 0:02:58]} 4. Bxc6 {[%clk 0:03:02]}  dxc6 {[%clk 0:02:59]} 5. Nc3 {[%clk 0:03:03]}  f6 {[%clk 0:02:55]} 6. d4 {[%clk 0:03:03]}  exd4 {[%clk 0:02:54]} 7. Qxd4 {[%clk 0:03:04]}  Qxd4 {[%clk 0:02:45]} 8. Nxd4 {[%clk 0:03:05]}  Bd7 {[%clk 0:02:44]} 9. Be3 {[%clk 0:03:06]}  O-O-O {[%clk 0:02:44]} 10. O-O-O {[%clk 0:03:06]}  Ne7 {[%clk 0:02:41]} 11. Nb3 {[%clk 0:03:06]}  b6 {[%clk 0:02:40]} 12. f3 {[%clk 0:03:03]}  Ng6 {[%clk 0:02:38]} 13. Ne2 {[%clk 0:03:02]}  c5 {[%clk 0:02:35]} 14. Bf2 {[%clk 0:03:02]}  Be7 {[%clk 0:02:30]} 15. Bg3 {[%clk 0:03:02]}  a5 {[%clk 0:02:28]} 16. Nf4 {[%clk 0:03:01]}  a4 {[%clk 0:02:25]} 17. Nd2 {[%clk 0:03:00]}  Nxf4 {[%clk 0:02:20]} 18. Bxf4 {[%clk 0:03:01]}  Be6 {[%clk 0:02:15]} 19. a3 {[%clk 0:02:58]}  g5 {[%clk 0:02:12]} 20. Bg3 {[%clk 0:02:56]}  h5 {[%clk 0:02:10]} 21. h3 {[%clk 0:02:56]}  h4 {[%clk 0:01:57]} 22. Bh2 {[%clk 0:02:55]}  c4 {[%clk 0:01:57]} 23. c3 {[%clk 0:02:55]}  Rd3 {[%clk 0:01:50]} 24. Nf1 {[%clk 0:02:38]}  Rhd8 {[%clk 0:01:37]} 25. Rxd3 {[%clk 0:02:39]}  cxd3 {[%clk 0:01:37]} 26. Kd2 {[%clk 0:02:38]}  f5 {[%clk 0:01:26]} 27. exf5 {[%clk 0:02:38]}  Bxf5 {[%clk 0:01:27]} 28. Ne3 {[%clk 0:02:39]}  Bg6 {[%clk 0:01:26]} 29. Re1 {[%clk 0:02:38]}  Bf8 {[%clk 0:01:17]} 30. Ng4 {[%clk 0:02:38]}  Bf5 {[%clk 0:00:57]} 31. Ne5 {[%clk 0:02:34]}  Kb7 {[%clk 0:00:49]} 32. Bg1 {[%clk 0:02:30]}  Rd5 {[%clk 0:00:45]} 33. Nc4 {[%clk 0:02:22]}  Rb5 {[%clk 0:00:35]} 34. Re5 {[%clk 0:02:20]}  Kc6 {[%clk 0:00:23]} 35. Rxb5 {[%clk 0:02:09]}  Kxb5 {[%clk 0:00:24]} 36. Ne5 {[%clk 0:02:10]}  Bg7 {[%clk 0:00:21]} 37. Nxd3 {[%clk 0:02:08]}  Kc4 {[%clk 0:00:20]} 38. Nc1 {[%clk 0:02:02]}  c5 {[%clk 0:00:17]} 39. Be3 {[%clk 0:02:02]}  Bf6 {[%clk 0:00:17]} 40. Bg1 {[%clk 0:01:56]}  Bd8 {[%clk 0:00:16]} 41. Be3 {[%clk 0:01:56]}  Be7 {[%clk 0:00:16]} 42. Bf2 {[%clk 0:01:42]}  b5 {[%clk 0:00:17]} 43. Be3 {[%clk 0:01:40]}  b4 {[%clk 0:00:17]} 44. cxb4 {[%clk 0:01:40]}  cxb4 {[%clk 0:00:18]} 45. axb4 {[%clk 0:01:40]}  Bxb4+ {[%clk 0:00:18]} 46. Kd1 {[%clk 0:01:39]}  Be7 {[%clk 0:00:19]} 47. Ne2 {[%clk 0:01:03]}  Bf6 {[%clk 0:00:12]} 48. Bc1 {[%clk 0:01:02]}  Bd3 {[%clk 0:00:08]} 49. f4 {[%clk 0:00:48]}  gxf4 {[%clk 0:00:08]} 50. Nxf4 {[%clk 0:00:44]}  Be4 {[%clk 0:00:09]} 51. Ke2 {[%clk 0:00:37]}  Bg5 {[%clk 0:00:09]} 52. Kf2 {[%clk 0:00:33]}  Kb3 {[%clk 0:00:09]} 53. Be3 {[%clk 0:00:28]}  Bf6 {[%clk 0:00:07]} 54. Bc5 {[%clk 0:00:23]}  Bxb2 {[%clk 0:00:06]} 55. g3 {[%clk 0:00:23]}  Bf6 {[%clk 0:00:05]} 56. gxh4 {[%clk 0:00:23]}  Bxh4+ {[%clk 0:00:06]} 57. Ke3 {[%clk 0:00:23]}  Bf5 {[%clk 0:00:06]} 58. Kf3 {[%clk 0:00:16]}  Bf6 {[%clk 0:00:07]} 59. Ng2 {[%clk 0:00:15]}  Bxh3 {[%clk 0:00:07]} 60. Nf4 {[%clk 0:00:15]}  Bf5 {[%clk 0:00:07]} 61. Ke3 {[%clk 0:00:15]}  Bc3 {[%clk 0:00:07]} 62. Ne2 {[%clk 0:00:15]}  Be1 {[%clk 0:00:07]} 63. Nd4+ {[%clk 0:00:15]}  Kc4 {[%clk 0:00:07]} 64. Ba3 {[%clk 0:00:11]}  Bh7 {[%clk 0:00:06]} 65. Ke2 {[%clk 0:00:08]}  Bc3 {[%clk 0:00:05]} 66. Nc6 {[%clk 0:00:07]}  Kb3 {[%clk 0:00:05]} 67. Be7 {[%clk 0:00:07]}  Be4 {[%clk 0:00:04]} 68. Na7 {[%clk 0:00:04]}  Bb4 {[%clk 0:00:04]} 69. Bf6 {[%clk 0:00:03]}  a3 {[%clk 0:00:04]} 70. Nb5 {[%clk 0:00:04]}  a2 {[%clk 0:00:04]} 71. Ke3 {[%clk 0:00:04]}  Bg6 {[%clk 0:00:04]} 72. Nd4+ {[%clk 0:00:04]}  Ka4 {[%clk 0:00:04]} 73. Nc6 {[%clk 0:00:03]}  Bc5+ {[%clk 0:00:03]} 74. Kd2 {[%clk 0:00:03]}  Ka3 {[%clk 0:00:03]} 75. Kc1 {[%clk 0:00:02]}  Be3+ {[%clk 0:00:03]} 76. Kd1 {[%clk 0:00:03]}  Bg5 {[%clk 0:00:03]} 77. Be5 {[%clk 0:00:02]}  Be4 {[%clk 0:00:03]} 78. Na7 {[%clk 0:00:02]}  Ka4 {[%clk 0:00:03]} 79. Nc8 {[%clk 0:00:02]}  Be3 {[%clk 0:00:03]} 80. Nd6 {[%clk 0:00:02]}  Bd3 {[%clk 0:00:03]} 81. Nf7 {[%clk 0:00:02]}  Kb3 {[%clk 0:00:03]} 82. Nd6 {[%clk 0:00:02]}  Kb4 {[%clk 0:00:03]} 83. Nb7 {[%clk 0:00:02]}  Kc4 {[%clk 0:00:03]} 84. Nd6+ {[%clk 0:00:03]}  Kd5 {[%clk 0:00:03]} 85. Ba1 {[%clk 0:00:02]}  Bd4 {[%clk 0:00:04]} 86. Ke1 {[%clk 0:00:02]}  Bxa1 {[%clk 0:00:04]} 87. Nb5 {[%clk 0:00:03]}  Bd4 {[%clk 0:00:04]} 88. Nc3+ {[%clk 0:00:04]}  Bxc3+ {[%clk 0:00:04]} 89. Kd1 {[%clk 0:00:05]}  a1=Q# {[%clk 0:00:05]} 0-1


[Site "https://www.chess.com"]